fUST/lending_fUST_20240508
["ID","MTS","AMOUNT","RATE_DAILY","PERIOD"]
[326542925,1715100675308,-500.0,0.00016986,2]
[326542927,1715100675321,-557.01,0.00016986,2]
[326542928,1715100675345,-1183.83,0.00016986,2]
[326542930,1715100675361,-610.14,0.00016986,2]
[326542932,1715100675376,-500.0,0.00016986,2]
[326542935,1715100675404,-606.04,0.00016986,2]
[326542936,1715100675415,-500.0,0.00016986,2]
[326542937,1715100675431,-244.78916056,0.00016986,2]
[326542938,1715100675444,-497.16,0.00016986,2]
[326542939,1715100675461,-644.41,0.00016986,2]
[326542943,1715100675501,-500.0,0.00016986,2]
[326542945,1715100675516,-500.0,0.00016986,2]
[326542950,1715100675576,-963.08,0.00016986,2]
[326542952,1715100675600,-502.16673946,0.00016986,2]
[326542955,1715100675610,-500.0,0.00016986,2]
[326542956,1715100675627,-501.8113291,0.00016986,2]
[326542959,1715100675644,-500.0,0.00016986,2]
[326542961,1715100675664,-2720.33,0.00016986,2]
[326542966,1715100675714,-501.92889216,0.00016986,2]
[326542970,1715100675757,-500.0,0.00016986,2]
[326542972,1715100675780,-500.0,0.00016986,2]
[326542974,1715100675792,-1202.59,0.00016986,2]
[326542975,1715100675809,-500.0,0.00016986,2]
[326542976,1715100675820,-500.0,0.00016986,2]
[326542978,1715100675831,-742.41,0.00016986,2]
[326542980,1715100675842,-500.0,0.00016986,2]
[326542981,1715100675853,-502.91957265,0.00016986,2]
[326542983,1715100675863,-500.0,0.00016986,2]
[326542985,1715100675875,-500.0,0.00016986,2]
[326542987,1715100675887,-500.0,0.00016986,2]
[326542989,1715100675899,-500.0,0.00016986,2]
[326542991,1715100675910,-500.0,0.00016986,2]
[326542993,1715100675925,-505.81582562,0.00016986,2]
[326542995,1715100675938,-766.57,0.00016986,2]
[326542998,1715100675982,-500.0,0.00016986,2]
[326543001,1715100676010,-956.93,0.00016986,2]
[326543003,1715100676026,-505.29,0.00016986,2]
[326543005,1715100676036,-500.0,0.00016986,2]
[326543007,1715100676047,-537.76,0.00016986,2]
[326543009,1715100676062,-500.0,0.00016986,2]
[326543011,1715100676075,-555.55493376,0.00016986,2]
[326543014,1715100676139,-500.0,0.00016986,2]
[326543017,1715100676156,-500.0,0.00016986,2]
[326543019,1715100676167,-500.0,0.00016986,2]
[326543020,1715100676178,-520.906263,0.00016986,2]
[326543022,1715100676188,-500.0,0.00016986,2]
[326543024,1715100676198,-500.0,0.00016986,2]
[326543026,1715100676211,-500.0,0.00016986,2]
[326543028,1715100676230,-500.0,0.00016986,2]
[326543029,1715100676240,-500.0,0.00016986,2]
[326543031,1715100676259,-500.0,0.00016986,2]
[326543033,1715100676279,-500.0,0.00016986,2]
[326543034,1715100676290,-1666.67,0.00016986,2]
[326543036,1715100676306,-500.0,0.00016986,2]
[326543038,1715100676320,-500.0,0.00016986,2]
[326543039,1715100676330,-500.0,0.00016986,2]
[326543041,1715100676344,-157.53714378,0.00016986,2]
[326543045,1715100676414,-500.0,0.00016986,2]
[326543047,1715100676431,-522.60668907,0.00016986,2]
[326543048,1715100676442,-500.0,0.00016986,2]
[326543049,1715100676462,-502.1692866,0.00016986,2]
[326543051,1715100676482,-500.0,0.00016986,2]
[326543052,1715100676498,-1484.81,0.00016986,2]
[326543053,1715100676515,-500.0,0.00016986,2]
[326543055,1715100676529,-1839.7,0.00016986,2]
[326543057,1715100676544,-500.0,0.00016986,2]
[326543059,1715100676568,-500.0,0.00016986,2]
[326543060,1715100676582,-500.0,0.00016986,2]
[326543062,1715100676593,-500.0,0.00016986,2]
[326543064,1715100676608,-500.0,0.00016986,2]
[326543065,1715100676622,-500.0,0.00016986,2]
[326543066,1715100676634,-500.0,0.00016986,2]
[326543067,1715100676645,-500.0,0.00016986,2]
[326543069,1715100676662,-500.0,0.00016986,2]
[326543071,1715100676673,-500.0,0.00016986,2]
[326543073,1715100676684,-500.0,0.00016986,2]
[326543074,1715100676704,-537.57,0.00016986,2]
[326543075,1715100676724,-623.62,0.00016986,2]
[326543077,1715100676735,-502.78730361,0.00016986,2]
[326543079,1715100676746,-500.0,0.00016986,2]
[326543081,1715100676758,-500.0,0.00016986,2]
[326543083,1715100676777,-500.0,0.00016986,2]
[326543085,1715100676791,-500.0,0.00016986,2]
[326543087,1715100676801,-500.0,0.00016986,2]
[326543089,1715100676816,-500.0,0.00016986,2]
[326543091,1715100676831,-500.0,0.00016986,2]
[326543092,1715100676841,-500.0,0.00016986,2]
[326543094,1715100676865,-500.0,0.00016986,2]
[326543096,1715100676876,-500.87818963,0.00016986,2]
[326543098,1715100676886,-500.0,0.00016986,2]
[326543100,1715100676905,-500.0,0.00016986,2]
[326543102,1715100676915,-500.0,0.00016986,2]
[326543104,1715100676925,-500.0,0.00016986,2]
[326543105,1715100676938,-500.0,0.00016986,2]
[326543106,1715100676951,-500.0,0.00016986,2]
[326543109,1715100676982,-500.0,0.00016986,2]
[326543110,1715100676994,-500.0,0.00016986,2]
[326543113,1715100677036,-500.0,0.00016986,2]
[326543115,1715100677047,-500.0,0.00016986,2]
[326543117,1715100677061,-427.30798101,0.00016986,2]
[326543119,1715100677075,-500.0,0.00016986,2]
[326543120,1715100677086,-500.0,0.00016986,2]
[326543122,1715100677099,-500.0,0.00016986,2]
[326543124,1715100677110,-500.0,0.00016986,2]
[326543126,1715100677122,-500.0,0.00016986,2]
[326543128,1715100677134,-832.64,0.00016986,2]
[326543130,1715100677149,-500.0,0.00016986,2]
[326543132,1715100677160,-3602.83,0.00016986,2]
[326543134,1715100677185,-500.0,0.00016986,2]
[326543136,1715100677203,-500.0,0.00016986,2]
[326543138,1715100677214,-500.0,0.00016986,2]
[326543140,1715100677229,-662.13,0.00016986,2]
[326543142,1715100677239,-500.0,0.00016986,2]
[326543144,1715100677257,-500.0,0.00016986,2]
[326543145,1715100677272,-195.50311732,0.00016986,2]
[326543147,1715100677284,-1700.25,0.00016986,2]
[326543149,1715100677294,-500.0,0.00016986,2]
[326543151,1715100677305,-500.0,0.00016986,2]
[326543154,1715100677326,-2219.36,0.00016986,2]
[326543156,1715100677342,-500.0,0.00016986,2]
[326543159,1715100677355,-500.0,0.00016986,2]
[326543161,1715100677389,-771.04958168,0.00016986,2]
[326543162,1715100677407,-500.0,0.00016986,2]
[326543163,1715100677417,-500.0,0.00016986,2]
[326543166,1715100677441,-500.0,0.00016986,2]
[326543168,1715100677454,-1647.39,0.00016986,2]
[326543170,1715100677471,-500.0,0.00016986,2]
[326543172,1715100677491,-500.0,0.00016986,2]
[326543174,1715100677526,-500.0,0.00016986,2]
[326543179,1715100677595,-755.49,0.00016986,2]
[326543181,1715100677607,-31814.43,0.00016986,2]
[326543183,1715100677618,-1981.85,0.00016986,2]
[326543184,1715100677629,-500.0,0.00016986,2]
[326543187,1715100677644,-500.0,0.00016986,2]
[326543188,1715100677655,-964.49,0.00016986,2]
[326543195,1715100677748,-500.0,0.00016986,2]
[326543198,1715100677779,-500.0,0.00016986,2]
[326543200,1715100677805,-500.0,0.00016986,2]
[326543201,1715100677819,-500.0,0.00016986,2]
[326543202,1715100677831,-7025.89,0.00016986,2]
[326543204,1715100677843,-652.97,0.00016986,2]
[326543207,1715100677869,-824.15,0.00016986,2]
[326543209,1715100677883,-858.25,0.00016986,2]
[326543211,1715100677903,-500.0,0.00016986,2]
[326543214,1715100677936,-500.0,0.00016986,2]
[326543216,1715100677947,-502.1394571,0.00016986,2]
[326543223,1715100678075,-500.0,0.00016986,2]
[326543225,1715100678087,-500.0,0.00016986,2]
[326543227,1715100678099,-500.0,0.00016986,2]
[326543228,1715100678109,-603.72,0.00016986,2]
[326543229,1715100678123,-500.0,0.00016986,2]
[326543233,1715100678152,-399.04511276,0.00016986,2]
[326543234,1715100678162,-1570.3,0.00016986,2]
[326543236,1715100678175,-895.38,0.00016986,2]
[326543238,1715100678186,-500.0,0.00016986,2]
[326543240,1715100678203,-500.0,0.00016986,2]
[326543241,1715100678214,-500.0,0.00016986,2]
[326543245,1715100678252,-500.0,0.00016986,2]
[326543246,1715100678276,-500.0,0.00016986,2]
[326543248,1715100678317,-5295.85,0.00016986,2]
[326543251,1715100678349,-666.21,0.00016986,2]
[326543253,1715100678366,-500.0,0.00016986,2]
[326543255,1715100678378,-500.0,0.00016986,2]
[326543257,1715100678389,-9324.81,0.00016986,2]
[326543260,1715100678419,-500.0,0.00016986,2]
[326543263,1715100678450,-500.0,0.00016986,2]
[326543266,1715100678498,-4170.79,0.00016986,2]
[326543268,1715100678509,-500.0,0.00016986,2]
[326543269,1715100678519,-500.0,0.00016986,2]
[326543271,1715100678535,-500.0,0.00016986,2]
[326543273,1715100678546,-500.0,0.00016986,2]
[326543275,1715100678555,-500.0,0.00016986,2]
[326543278,1715100678589,-500.0,0.00016986,2]
[326543279,1715100678599,-501.51161643,0.00016986,2]
[326543280,1715100678611,-500.0,0.00016986,2]
[326543282,1715100678622,-500.0,0.00016986,2]
[326543285,1715100678640,-500.0,0.00016986,2]
[326543286,1715100678654,-614.86,0.00016986,2]
[326543287,1715100678668,-909.32,0.00016986,2]
[326543289,1715100678678,-8754.17,0.00016986,2]
[326543293,1715100678716,-502.13836566,0.00016986,2]
[326543295,1715100678730,-500.0,0.00016986,2]
[326543298,1715100678750,-500.0,0.00016986,2]
[326543301,1715100678785,-500.0,0.00016986,2]
[326543303,1715100678797,-502.134802,0.00016986,2]
[326543307,1715100678839,-500.0,0.00016986,2]
[326543309,1715100678854,-500.0,0.00016986,2]
[326543311,1715100678865,-1459.34,0.00016986,2]
[326543313,1715100678876,-517.24963505,0.00016986,2]
[326543314,1715100678888,-500.0,0.00016986,2]
[326543317,1715100678919,-872.41,0.00016986,2]
[326543319,1715100678932,-1280.71,0.00016986,2]
[326543320,1715100678946,-500.0,0.00016986,2]
[326543322,1715100678957,-500.0,0.00016986,2]
[326543324,1715100678968,-500.0,0.00016986,2]
[326543326,1715100678981,-1076.55,0.00016986,2]
[326543328,1715100678994,-1241.24,0.00016986,2]
[326543329,1715100679007,-500.0,0.00016986,2]
[326543331,1715100679025,-500.0,0.00016986,2]
[326543332,1715100679039,-500.0,0.00016986,2]
[326543336,1715100679073,-500.0,0.00016986,2]
[326543338,1715100679087,-500.0,0.00016986,2]
[326543340,1715100679099,-500.0,0.00016986,2]
[326543343,1715100679147,-500.0,0.00016986,2]
[326543344,1715100679157,-500.0,0.00016986,2]
[326543346,1715100679174,-500.0,0.00016986,2]
[326543348,1715100679186,-4666.57,0.00016986,2]
[326543350,1715100679203,-500.0,0.00016986,2]
[326543352,1715100679221,-4484.38,0.00016986,2]
[326543354,1715100679232,-500.0,0.00016986,2]
[326543356,1715100679243,-500.0,0.00016986,2]
[326543357,1715100679258,-500.0,0.00016986,2]
[326543359,1715100679270,-4821.43,0.00016986,2]
[326543361,1715100679284,-1153.61,0.00016986,2]
[326543363,1715100679294,-500.0,0.00016986,2]
[326543365,1715100679305,-500.0,0.00016986,2]
[326543367,1715100679338,-500.0,0.00016986,2]
[326543370,1715100679378,-7015.82,0.00016986,2]
[326543372,1715100679388,-5292.07,0.00016986,2]
[326543374,1715100679398,-500.0,0.00016986,2]
[326543376,1715100679411,-500.0,0.00016986,2]
[326543378,1715100679432,-5424.2,0.00016986,2]
[326543380,1715100679442,-500.0,0.00016986,2]
[326543383,1715100679474,-2287.23,0.00016986,2]
[326543387,1715100679521,-500.0,0.00016986,2]
[326543389,1715100679532,-3605.11,0.00016986,2]
[326543390,1715100679543,-1452.82,0.00016986,2]
[326543392,1715100679555,-5288.57,0.00016986,2]
[326543394,1715100679566,-580.85,0.00016986,2]
[326543397,1715100679605,-551.6,0.00016986,2]
[326543398,1715100679623,-1092.67,0.00016986,2]
[326543402,1715100679669,-2517.87,0.00016986,2]
[326543404,1715100679689,-500.0,0.00016986,2]
[326543406,1715100679705,-44635.20087554,0.00017,2]
[326543408,1715100679721,-231.28285559,0.00017259,2]
[326543410,1715100679732,-1065.75140357,0.00017259,2]
[326543412,1715100679749,-500.0,0.0001726,2]
[326543417,1715100679817,-500.0,0.0001726,2]
[326543419,1715100679828,-613.21,0.0001726,2]
[326543420,1715100679840,-500.0,0.0001726,2]
[326543422,1715100679851,-535.75,0.0001726,2]
[326543424,1715100679862,-500.0,0.0001726,2]
[326543425,1715100679872,-500.0,0.0001726,2]
[326543427,1715100679886,-502.99035563,0.0001726,2]
[326543428,1715100679897,-500.0,0.0001726,2]
[326543430,1715100679919,-437.28396107,0.0001726,2]
[326543432,1715100679931,-1102.53,0.0001726,2]
[326543433,1715100679955,-500.0,0.0001726,2]
[326543435,1715100679968,-500.0,0.0001726,2]
[326543437,1715100679979,-500.0,0.0001726,2]
[326543439,1715100679992,-500.0,0.0001726,2]
[326543441,1715100680008,-503.43340061,0.0001726,2]
[326543443,1715100680056,-521.87148433,0.0001726,2]
[326543444,1715100680071,-500.0,0.0001726,2]
[326543446,1715100680082,-500.0,0.0001726,2]
[326543449,1715100680099,-500.0,0.0001726,2]
[326543450,1715100680114,-500.0,0.0001726,2]
[326543452,1715100680127,-500.0,0.0001726,2]
[326543454,1715100680143,-557.01,0.0001726,2]
[326543459,1715100680201,-1183.83,0.0001726,2]
[326543462,1715100680240,-610.14,0.0001726,2]
[326543464,1715100680250,-606.04,0.0001726,2]
[326543466,1715100680277,-644.41,0.0001726,2]
[326543468,1715100680287,-500.0,0.0001726,2]
[326543470,1715100680303,-500.0,0.0001726,2]
[326543472,1715100680314,-963.08,0.0001726,2]
[326543473,1715100680324,-500.0,0.0001726,2]
[326543475,1715100680343,-2720.33,0.0001726,2]
[326543476,1715100680398,-503.25816645,0.0001726,2]
[326543478,1715100680409,-500.0,0.0001726,2]
[326543480,1715100680425,-500.0,0.0001726,2]
[326543482,1715100680445,-1202.59,0.0001726,2]
[326543484,1715100680468,-500.0,0.0001726,2]
[326543486,1715100680479,-502.17895861,0.0001726,2]
[326543487,1715100680489,-742.41,0.0001726,2]
[326543488,1715100680505,-500.0,0.0001726,2]
[326543491,1715100680548,-500.0,0.0001726,2]
[326543494,1715100680563,-500.0,0.0001726,2]
[326543495,1715100680578,-500.0,0.0001726,2]
[326543497,1715100680600,-500.0,0.0001726,2]
[326543499,1715100680610,-766.57,0.0001726,2]
[326543501,1715100680622,-500.0,0.0001726,2]
[326543503,1715100680633,-956.93,0.0001726,2]
[326543505,1715100680643,-505.29,0.0001726,2]
[326543507,1715100680654,-500.0,0.0001726,2]
[326543509,1715100680664,-537.76,0.0001726,2]
[326543513,1715100680713,-500.0,0.0001726,2]
[326543515,1715100680724,-500.0,0.0001726,2]
[326543517,1715100680740,-184.14,0.0001726,2]
[326543518,1715100680751,-521.73611544,0.0001726,2]
[326543523,1715100680804,-500.0,0.0001726,2]
[326543525,1715100680815,-555.69589857,0.0001726,2]
[326543527,1715100680832,-500.0,0.0001726,2]
[326543529,1715100680844,-504.34808821,0.0001726,2]
[326543531,1715100680857,-500.0,0.0001726,2]
[326543536,1715100680894,-500.0,0.0001726,2]
[326543537,1715100680908,-500.0,0.0001726,2]
[326543538,1715100680926,-500.0,0.0001726,2]
[326543540,1715100680938,-500.0,0.0001726,2]
[326543542,1715100680962,-500.0,0.0001726,2]
[326543544,1715100680973,-501.23343139,0.0001726,2]
[326543545,1715100680987,-500.0,0.0001726,2]
[326543547,1715100681002,-500.0,0.0001726,2]
[326543549,1715100681019,-1484.81,0.0001726,2]
[326543552,1715100681054,-500.0,0.0001726,2]
[326543553,1715100681069,-1839.7,0.0001726,2]
[326543555,1715100681079,-500.0,0.0001726,2]
[326543557,1715100681108,-500.0,0.0001726,2]
[326543559,1715100681118,-500.0,0.0001726,2]
[326543561,1715100681128,-500.0,0.0001726,2]
[326543562,1715100681139,-500.0,0.0001726,2]
[326543567,1715100681175,-500.0,0.0001726,2]
[326543569,1715100681188,-500.0,0.0001726,2]
[326543570,1715100681198,-500.0,0.0001726,2]
[326543571,1715100681207,-500.0,0.0001726,2]
[326543572,1715100681225,-501.66449348,0.0001726,2]
[326543574,1715100681246,-537.57,0.0001726,2]
[326543575,1715100681256,-500.0,0.0001726,2]
[326543576,1715100681281,-623.62,0.0001726,2]
[326543577,1715100681314,-500.0,0.0001726,2]
[326543578,1715100681348,-500.0,0.0001726,2]
[326543579,1715100681358,-359.35874096,0.0001726,2]
[326543580,1715100681373,-500.0,0.0001726,2]
[326543581,1715100681383,-500.0,0.0001726,2]
[326543582,1715100681394,-500.0,0.0001726,2]
[326543583,1715100681429,-527.39487284,0.0001726,2]
[326543584,1715100681440,-500.0,0.0001726,2]
[326543585,1715100681450,-500.0,0.0001726,2]
[326543586,1715100681462,-500.0,0.0001726,2]
[326543587,1715100681478,-500.0,0.0001726,2]
[326543589,1715100681491,-500.0,0.0001726,2]
[326543591,1715100681504,-469.71152059,0.0001726,2]
[326543592,1715100681514,-500.0,0.0001726,2]
[326543594,1715100681529,-500.0,0.0001726,2]
[326543596,1715100681558,-500.0,0.0001726,2]
[326543598,1715100681568,-500.0,0.0001726,2]
[326543600,1715100681581,-500.0,0.0001726,2]
[326543602,1715100681591,-500.0,0.0001726,2]
[326543605,1715100681602,-500.0,0.0001726,2]
[326543607,1715100681643,-500.0,0.0001726,2]
[326543609,1715100681653,-500.0,0.0001726,2]
[326543610,1715100681663,-832.64,0.0001726,2]
[326543611,1715100681673,-500.0,0.0001726,2]
[326543612,1715100681685,-3602.83,0.0001726,2]
[326543613,1715100681695,-510.65801501,0.0001726,2]
[326543616,1715100681721,-500.0,0.0001726,2]
[326543620,1715100681778,-164.62858759,0.0001726,2]
[326543622,1715100681788,-662.13,0.0001726,2]
[326543624,1715100681802,-500.0,0.0001726,2]
[326543626,1715100681812,-500.0,0.0001726,2]
[326543628,1715100681824,-1700.25,0.0001726,2]
[326543631,1715100681848,-500.0,0.0001726,2]
[326543633,1715100681860,-500.0,0.0001726,2]
[326543635,1715100681871,-2219.36,0.0001726,2]
[326543638,1715100681889,-500.0,0.0001726,2]
[326543640,1715100681903,-505.30909064,0.0001726,2]
[326543641,1715100681917,-500.0,0.0001726,2]
[326543643,1715100681927,-500.0,0.0001726,2]
[326543646,1715100681945,-500.0,0.0001726,2]
[326543648,1715100681955,-1647.39,0.0001726,2]
[326543651,1715100681980,-500.0,0.0001726,2]
[326543653,1715100682002,-500.0,0.0001726,2]
[326543655,1715100682015,-500.0,0.0001726,2]
[326543657,1715100682043,-755.49,0.0001726,2]
[326543660,1715100682081,-31814.43,0.0001726,2]
[326543662,1715100682091,-1981.85,0.0001726,2]
[326543664,1715100682103,-500.0,0.0001726,2]
[326543666,1715100682112,-500.0,0.0001726,2]
[326543667,1715100682123,-964.49,0.0001726,2]
[326543669,1715100682133,-500.0,0.0001726,2]
[326543671,1715100682159,-500.0,0.0001726,2]
[326543673,1715100682170,-500.0,0.0001726,2]
[326543675,1715100682181,-500.0,0.0001726,2]
[326543677,1715100682195,-5425.98733768,0.0001726,2]
[326543692,1715100682380,-1599.90266232,0.0001726,2]
[326543693,1715100682392,-652.97,0.0001726,2]
[326543695,1715100682403,-858.25,0.0001726,2]
[326543698,1715100682430,-500.0,0.0001726,2]
[326543701,1715100682443,-500.0,0.0001726,2]
[326543703,1715100682463,-500.0,0.0001726,2]
[326543705,1715100682492,-507.25445746,0.0001726,2]
[326543708,1715100682509,-500.0,0.0001726,2]
[326543710,1715100682520,-603.72,0.0001726,2]
[326543712,1715100682530,-500.0,0.0001726,2]
[326543714,1715100682540,-1570.3,0.0001726,2]
[326543716,1715100682554,-895.38,0.0001726,2]
[326543719,1715100682589,-502.1532099,0.0001726,2]
[326543722,1715100682617,-500.0,0.0001726,2]
[326543725,1715100682644,-500.0,0.0001726,2]
[326543734,1715100682788,-500.0,0.0001726,2]
[326543736,1715100682799,-5295.85,0.0001726,2]
[326543738,1715100682809,-666.21,0.0001726,2]
[326543741,1715100682831,-500.0,0.0001726,2]
[326543742,1715100682841,-500.0,0.0001726,2]
[326543743,1715100682850,-6476.76343754,0.0001726,2]
[326543745,1715100682866,-2848.04656246,0.0001726,2]
[326543747,1715100682883,-500.0,0.0001726,2]
[326543749,1715100682894,-4170.79,0.0001726,2]
[326543750,1715100682903,-500.0,0.0001726,2]
[326543752,1715100682941,-500.0,0.0001726,2]
[326543753,1715100682954,-500.0,0.0001726,2]
[326543754,1715100682978,-500.0,0.0001726,2]
[326543758,1715100683008,-500.0,0.0001726,2]
[326543759,1715100683019,-500.0,0.0001726,2]
[326543760,1715100683031,-500.0,0.0001726,2]
[326543763,1715100683049,-500.0,0.0001726,2]
[326543766,1715100683093,-500.0,0.0001726,2]
[326543768,1715100683118,-500.0,0.0001726,2]
[326543770,1715100683136,-614.86,0.0001726,2]
[326543772,1715100683150,-909.32,0.0001726,2]
[326543774,1715100683161,-4949.26735927,0.0001726,2]
[326543776,1715100683176,-3804.90264073,0.0001726,2]
[326543778,1715100683187,-500.0,0.0001726,2]
[326543780,1715100683199,-500.0,0.0001726,2]
[326543781,1715100683209,-500.0,0.0001726,2]
[326543783,1715100683219,-500.0,0.0001726,2]
[326543784,1715100683231,-1459.34,0.0001726,2]
[326543786,1715100683241,-500.0,0.0001726,2]
[326543789,1715100683255,-872.41,0.0001726,2]
[326543790,1715100683268,-1280.71,0.0001726,2]
[326543792,1715100683278,-500.0,0.0001726,2]
[326543794,1715100683288,-500.0,0.0001726,2]
[326543796,1715100683302,-465.05662984,0.0001726,2]
[326543798,1715100683334,-1076.55,0.0001726,2]
[326543802,1715100683378,-1241.24,0.0001726,2]
[326543804,1715100683388,-503.94595464,0.0001726,2]
[326543806,1715100683404,-500.0,0.0001726,2]
[326543808,1715100683414,-507.82771562,0.0001726,2]
[326543810,1715100683429,-500.0,0.0001726,2]
[326543813,1715100683452,-4666.57,0.0001726,2]
[326543814,1715100683463,-500.0,0.0001726,2]
[326543816,1715100683473,-500.0,0.0001726,2]
[326543819,1715100683492,-4484.38,0.0001726,2]
[326543821,1715100683502,-500.0,0.0001726,2]
[326543824,1715100683561,-500.0,0.0001726,2]
[326543826,1715100683572,-4821.43,0.0001726,2]
[326543829,1715100683586,-1153.61,0.0001726,2]
[326543831,1715100683609,-500.0,0.0001726,2]
[326543833,1715100683620,-272.82435014,0.0001726,2]
[326543835,1715100683634,-500.0,0.0001726,2]
[326543837,1715100683650,-7015.82,0.0001726,2]
[326543838,1715100683662,-4048.54660329,0.0001726,2]
[326547520,1715100907505,28000.0,0.000265,120]
[326547525,1715101834757,-218.609004,0.00015327,2]
[326547531,1715101834773,-162.19860967,0.0001579,2]
[326547535,1715101834792,-171.625586,0.0001589,2]
[326547539,1715101834803,-226.140938,0.0001589,2]
[326547543,1715101834816,-7948.04730527,0.00016019,2]
[326547546,1715101834827,-206.420256,0.00016023,2]
[326547550,1715101834838,-240.996391,0.00016023,2]
[326547554,1715101834849,-206.420256,0.00016023,2]
[326547555,1715101834859,-240.996391,0.00016023,2]
[326547557,1715101834869,-181.484267,0.00016023,2]
[326547559,1715101834880,-160.849909,0.00016023,2]
[326547562,1715101834898,-160.849909,0.00016023,2]
[326547564,1715101834908,-181.484267,0.00016023,2]
[326547566,1715101834920,-206.420256,0.00016223,2]
[326547567,1715101834931,-240.996391,0.00016223,2]
[326547569,1715101834941,-206.420256,0.00016223,2]
[326547571,1715101834955,-240.996391,0.00016223,2]
[326547573,1715101834976,-153.0,0.000163,2]
[326547575,1715101835005,-206.420256,0.00016424,2]
[326547576,1715101835034,-240.996391,0.00016424,2]
[326547579,1715101835052,-206.420256,0.00016424,2]
[326547581,1715101835071,-240.996391,0.00016424,2]
[326547584,1715101835097,-816.36499796,0.00016436,2]
[326547588,1715101835128,-1335.86013751,0.00016436,2]
[326547589,1715101835142,-409.6003669,0.00016436,2]
[326547591,1715101835154,-240.19230089,0.00016436,2]
[326547593,1715101835165,-315.15765538,0.00016436,2]
[326547595,1715101835176,-194.01502921,0.00016436,2]
[326547597,1715101835186,-940.61834724,0.00016437,2]
[326547599,1715101835201,-500.0,0.00016438,2]
[326547601,1715101835211,-500.0,0.00016438,2]
[326547603,1715101835222,-500.0,0.00016438,2]
[326547605,1715101835236,-500.0,0.00016438,2]
[326547607,1715101835246,-500.0,0.00016438,2]
[326547609,1715101835258,-500.0,0.00016438,2]
[326547611,1715101835267,-500.0,0.00016438,2]
[326547612,1715101835277,-500.0,0.00016438,2]
[326547615,1715101835292,-503.20874344,0.00016438,2]
[326547617,1715101835307,-339.52722959,0.00016438,2]
[326547619,1715101835322,-500.0,0.00016438,2]
[326547621,1715101835333,-500.0,0.00016438,2]
[326547623,1715101835349,-500.0,0.00016438,2]
[326547625,1715101835359,-803.74,0.00016438,2]
[326547627,1715101835369,-500.0,0.00016438,2]
[326547631,1715101835406,-500.0,0.00016438,2]
[326547633,1715101835420,-961.34,0.00016438,2]
[326547635,1715101835430,-615.92,0.00016438,2]
[326547636,1715101835440,-500.0,0.00016438,2]
[326547639,1715101835457,-727.01,0.00016438,2]
[326547640,1715101835467,-500.0,0.00016438,2]
[326547642,1715101835479,-500.0,0.00016438,2]
[326547644,1715101835491,-500.0,0.00016438,2]
[326547648,1715101835530,-519.68,0.00016438,2]
[326547650,1715101835541,-500.0,0.00016438,2]
[326547652,1715101835552,-500.0,0.00016438,2]
[326547654,1715101835569,-500.0,0.00016438,2]
[326547656,1715101835581,-500.0,0.00016438,2]